fUSD/lending_fUSD_20250405
["ID","MTS","AMOUNT","RATE_DAILY","PERIOD"]
[357194253,1743883852973,-2538.8,0.00031506,2]
[357194254,1743883852982,-500.0,0.00031506,2]
[357194255,1743883852991,-500.0,0.00031506,2]
[357194256,1743883853001,-1163.81,0.00031506,2]
[357194257,1743883853011,-500.0,0.00031506,2]
[357194258,1743883853021,-3919.01,0.00031506,2]
[357194259,1743883853030,-500.0,0.00031506,2]
[357194260,1743883853039,-9459.4,0.00031506,2]
[357194261,1743883853050,-1226.06,0.00031506,2]
[357194262,1743883853059,-500.0,0.00031506,2]
[357194263,1743883853069,-500.0,0.00031506,2]
[357194264,1743883853079,-500.0,0.00031506,2]
[357194265,1743883853088,-500.0,0.00031506,2]
[357194266,1743883853098,-564.2,0.00031506,2]
[357194267,1743883853108,-500.0,0.00031506,2]
[357194268,1743883853117,-500.0,0.00031506,2]
[357194269,1743883853127,-151.0,0.00031506,7]
[357194270,1743883853137,-500.0,0.00031506,2]
[357194271,1743883853147,-1161.02,0.00031506,2]
[357194272,1743883853156,-151.0,0.00031506,7]
[357194273,1743883853165,-2386.027986,0.00031506,7]
[357194274,1743883853175,-2386.027986,0.00031506,7]
[357194275,1743883853185,-500.0,0.00031506,2]
[357194276,1743883853194,-1872.71,0.00031507,2]
[357194277,1743883853203,-6194.7696325,0.00031611,2]
[357194278,1743883853213,-151.0,0.0003178,7]
[357194279,1743883853222,-151.0,0.0003178,7]
[357194280,1743883853232,-500.0,0.0003178,2]
[357194281,1743883853241,-500.0,0.0003178,2]
[357194282,1743883853251,-527.71986024,0.0003178,2]
[357194283,1743883853260,-500.0,0.0003178,2]
[357194284,1743883853270,-500.0,0.0003178,2]
[357194285,1743883853279,-500.0,0.0003178,2]
[357194286,1743883853289,-500.0,0.0003178,2]
[357194287,1743883853298,-500.0,0.0003178,2]
[357194288,1743883853307,-500.0,0.0003178,2]
[357194289,1743883853318,-1180.8,0.0003178,2]
[357194290,1743883853327,-500.0,0.0003178,2]
[357194291,1743883853336,-500.0,0.0003178,2]
[357194292,1743883853346,-500.0,0.0003178,2]
[357194293,1743883853356,-500.0,0.0003178,2]
[357194294,1743883853365,-519.56709152,0.0003178,2]
[357194295,1743883853374,-500.0,0.0003178,2]
[357194296,1743883853384,-500.0,0.0003178,2]
[357194297,1743883853393,-500.0,0.0003178,2]
[357194298,1743883853402,-633.25967283,0.0003178,2]
[357194299,1743883853412,-500.0,0.0003178,2]
[357194300,1743883853422,-500.0,0.0003178,2]
[357194301,1743883853432,-500.0,0.0003178,2]
[357194302,1743883853441,-500.0,0.0003178,2]
[357194303,1743883853451,-500.0,0.0003178,2]
[357194304,1743883853460,-574.14,0.0003178,2]
[357194305,1743883853470,-500.0,0.0003178,2]
[357194306,1743883853479,-500.0,0.0003178,2]
[357194307,1743883853489,-500.0,0.0003178,2]
[357194308,1743883853498,-7496.33,0.0003178,2]
[357194309,1743883853507,-1042.25,0.0003178,2]
[357194310,1743883853517,-500.0,0.0003178,2]
[357194311,1743883853526,-543.06,0.0003178,2]
[357194312,1743883853536,-500.0,0.0003178,2]
[357194313,1743883853545,-292.83569343,0.0003178,2]
[357194314,1743883853555,-647.48,0.0003178,2]
[357194315,1743883853565,-500.0,0.0003178,2]
[357194316,1743883853574,-1355.36,0.0003178,2]
[357194317,1743883853583,-718.6,0.0003178,2]
[357194318,1743883853592,-693.04,0.0003178,2]
[357194319,1743883853602,-749.12,0.0003178,2]
[357194320,1743883853611,-679.22,0.0003178,2]
[357194321,1743883853621,-1292.535242,0.0003178,7]
[357194322,1743883853630,-719.01,0.0003178,2]
[357194323,1743883853640,-500.0,0.0003178,2]
[357194324,1743883853649,-500.0,0.0003178,2]
[357194325,1743883853658,-1292.535242,0.0003178,7]
[357194326,1743883853668,-5078.45,0.0003178,2]
[357194327,1743883853677,-500.0,0.0003178,2]
[357194328,1743883853687,-2538.8,0.0003178,2]
[357194329,1743883853696,-500.0,0.0003178,2]
[357194330,1743883853706,-500.0,0.0003178,2]
[357194331,1743883853715,-1163.81,0.0003178,2]
[357194332,1743883853725,-500.0,0.0003178,2]
[357194333,1743883853735,-3919.01,0.0003178,2]
[357194334,1743883853746,-500.0,0.0003178,2]
[357194335,1743883853755,-9459.4,0.0003178,2]
[357194336,1743883853797,-1226.06,0.0003178,2]
[357194337,1743883853807,-500.0,0.0003178,2]
[357194338,1743883853816,-500.0,0.0003178,2]
[357194339,1743883853825,-500.0,0.0003178,2]
[357194340,1743883853835,-500.0,0.0003178,2]
[357194341,1743883853844,-564.2,0.0003178,2]
[357194342,1743883853854,-500.0,0.0003178,2]
[357194343,1743883853863,-500.0,0.0003178,2]
[357194344,1743883853873,-286.47239,0.0003178,7]
[357194345,1743883853883,-500.0,0.0003178,2]
[357194346,1743883853892,-1161.02,0.0003178,2]
[357194347,1743883853902,-500.0,0.0003178,2]
[357194348,1743883853910,-150.0,0.00031836,2]
[357194349,1743883853919,-150.0,0.00031836,2]
[357194350,1743883853929,-150.0,0.00031836,2]
[357194351,1743883853940,-2200.0,0.000319,11]
[357194352,1743883853950,-500.0,0.00032054,2]
[357194353,1743883853960,-500.0,0.00032054,2]
[357194354,1743883853969,-500.0,0.00032054,2]
[357194355,1743883853979,-247.74601763,0.00032054,2]
[357194356,1743883853988,-213.84705,0.00032054,7]
[357194357,1743883853998,-213.84705,0.00032054,7]
[357194358,1743883854007,-500.0,0.00032054,2]
[357194359,1743883854017,-500.0,0.00032054,2]
[357194360,1743883854026,-170.411735,0.00032054,7]
[357194361,1743883854034,-500.0,0.00032054,2]
[357194362,1743883854045,-500.0,0.00032054,2]
[357194363,1743883854055,-1180.8,0.00032054,2]
[357194364,1743883854064,-151.0,0.00032054,7]
[357194365,1743883854073,-151.0,0.00032054,7]
[357194366,1743883854083,-500.0,0.00032054,2]
[357194367,1743883854094,-500.0,0.00032054,2]
[357194368,1743883854104,-500.0,0.00032054,2]
[357194369,1743883854114,-151.0,0.00032054,7]
[357194370,1743883854124,-500.0,0.00032054,2]
[357194371,1743883854133,-151.0,0.00032054,7]
[357194372,1743883854143,-151.0,0.00032054,7]
[357194373,1743883854152,-500.0,0.00032054,2]
[357194374,1743883854161,-151.0,0.00032054,7]
[357194375,1743883854170,-236.806539,0.00032054,7]
[357194376,1743883854180,-151.0,0.00032054,7]
[357194377,1743883854189,-205.49,0.00032054,2]
[357194378,1743883854199,-500.0,0.00032054,2]
[357194379,1743883854209,-500.0,0.00032054,2]
[357194380,1743883854218,-500.0,0.00032054,2]
[357194381,1743883854228,-500.0,0.00032054,2]
[357194382,1743883854238,-478.924842,0.00032054,2]
[357194383,1743883854247,-500.0,0.00032054,2]
[357194384,1743883854256,-574.14,0.00032054,2]
[357194385,1743883854266,-500.0,0.00032054,2]
[357194386,1743883854275,-500.0,0.00032054,2]
[357194387,1743883854285,-500.0,0.00032054,2]
[357194388,1743883854295,-7496.33,0.00032054,2]
[357194389,1743883854304,-1042.25,0.00032054,2]
[357194390,1743883854314,-500.0,0.00032054,2]
[357194391,1743883854323,-543.06,0.00032054,2]
[357194392,1743883854332,-603.32639119,0.00032054,2]
[357194393,1743883854341,-647.48,0.00032054,2]
[357194394,1743883854351,-500.0,0.00032054,2]
[357194395,1743883854361,-151.0,0.00032054,7]
[357194396,1743883854370,-192.643015,0.00032054,7]
[357194397,1743883854379,-718.6,0.00032054,2]
[357194398,1743883854388,-1355.36,0.00032054,2]
[357194399,1743883854398,-693.04,0.00032054,2]
[357194400,1743883854407,-749.12,0.00032054,2]
[357194401,1743883854416,-679.22,0.00032054,2]
[357194402,1743883854426,-719.01,0.00032054,2]
[357194403,1743883854435,-500.0,0.00032054,2]
[357194404,1743883854445,-500.0,0.00032054,2]
[357194405,1743883854454,-5078.45,0.00032054,2]
[357194406,1743883854463,-500.0,0.00032054,2]
[357194407,1743883854473,-2538.8,0.00032054,2]
[357194408,1743883854482,-500.0,0.00032054,2]
[357194409,1743883854492,-500.0,0.00032054,2]
[357194410,1743883854501,-1163.81,0.00032054,2]
[357194411,1743883854510,-500.0,0.00032054,2]
[357194412,1743883854520,-3919.01,0.00032054,2]
[357194413,1743883854529,-500.0,0.00032054,2]
[357194414,1743883854538,-9459.4,0.00032054,2]
[357194415,1743883854547,-1226.06,0.00032054,2]
[357194416,1743883854557,-500.0,0.00032054,2]
[357194417,1743883854566,-500.0,0.00032054,2]
[357194418,1743883854575,-500.0,0.00032054,2]
[357194419,1743883854584,-500.0,0.00032054,2]
[357194420,1743883854594,-564.2,0.00032054,2]
[357194421,1743883854603,-500.0,0.00032054,2]
[357194422,1743883854612,-500.0,0.00032054,2]
[357194423,1743883854621,-151.0,0.00032054,7]
[357194424,1743883854631,-500.0,0.00032054,2]
[357194425,1743883854640,-1161.02,0.00032054,2]
[357194426,1743883854650,-198.552094,0.00032054,7]
[357194427,1743883854659,-2386.027986,0.00032054,7]
[357194428,1743883854668,-2386.027986,0.00032054,7]
[357194429,1743883854678,-500.0,0.00032054,2]
[357194430,1743883854687,-1419.96,0.00032057,2]
[357194431,1743883854696,-655.85,0.00032327,2]
[357194432,1743883854705,-151.0,0.00032328,7]
[357194433,1743883854715,-500.0,0.00032328,2]
[357194434,1743883854724,-500.0,0.00032328,2]
[357194435,1743883854733,-500.0,0.00032328,2]
[357194436,1743883854742,-500.0,0.00032328,2]
[357194437,1743883854755,-500.0,0.00032328,2]
[357194438,1743883854764,-500.0,0.00032328,2]
[357194439,1743883854774,-500.0,0.00032328,2]
[357194440,1743883854785,-1180.8,0.00032328,2]
[357194441,1743883854794,-500.0,0.00032328,2]
[357194442,1743883854803,-500.0,0.00032328,2]
[357194443,1743883854812,-500.0,0.00032328,2]
[357194444,1743883854822,-500.0,0.00032328,2]
[357194445,1743883854830,-500.0,0.00032328,2]
[357194446,1743883854841,-500.0,0.00032328,2]
[357194447,1743883854851,-500.0,0.00032328,2]
[357194448,1743883854860,-500.0,0.00032328,2]
[357194449,1743883854871,-500.0,0.00032328,2]
[357194450,1743883854882,-500.0,0.00032328,2]
[357194451,1743883854892,-574.14,0.00032328,2]
[357194452,1743883854901,-500.0,0.00032328,2]
[357194453,1743883854910,-500.0,0.00032328,2]
[357194454,1743883854919,-500.0,0.00032328,2]
[357194455,1743883854930,-7496.33,0.00032328,2]
[357194456,1743883854939,-1042.25,0.00032328,2]
[357194457,1743883854949,-500.0,0.00032328,2]
[357194458,1743883854961,-543.06,0.00032328,2]
[357194459,1743883854973,-647.48,0.00032328,2]
[357194460,1743883854983,-500.0,0.00032328,2]
[357194461,1743883854992,-718.6,0.00032328,2]
[357194462,1743883855003,-1355.36,0.00032328,2]
[357194463,1743883855012,-693.04,0.00032328,2]
[357194464,1743883855021,-749.12,0.00032328,2]
[357194465,1743883855031,-679.22,0.00032328,2]
[357194466,1743883855040,-1292.535242,0.00032328,7]
[357194467,1743883855049,-719.01,0.00032328,2]
[357194468,1743883855059,-500.0,0.00032328,2]
[357194469,1743883855069,-500.0,0.00032328,2]
[357194470,1743883855078,-1292.535242,0.00032328,7]
[357194471,1743883855088,-5078.45,0.00032328,2]
[357194472,1743883855097,-500.0,0.00032328,2]
[357194473,1743883855106,-2538.8,0.00032328,2]
[357194474,1743883855116,-500.0,0.00032328,2]
[357194475,1743883855125,-500.0,0.00032328,2]
[357194476,1743883855134,-1163.81,0.00032328,2]
[357194477,1743883855143,-500.0,0.00032328,2]
[357194478,1743883855152,-3919.01,0.00032328,2]
[357194479,1743883855161,-500.0,0.00032328,2]
[357194480,1743883855170,-9459.4,0.00032328,2]
[357194481,1743883855180,-1226.06,0.00032328,2]
[357194482,1743883855189,-500.0,0.00032328,2]
[357194483,1743883855198,-646.22453105,0.00032328,2]
[357194484,1743883855207,-500.0,0.00032328,2]
[357194485,1743883855216,-320.59924367,0.00032328,2]
[357194486,1743883855225,-564.2,0.00032328,2]
[357194487,1743883855235,-500.0,0.00032328,2]
[357194488,1743883855244,-500.0,0.00032328,2]
[357194489,1743883855254,-500.0,0.00032328,2]
[357194490,1743883855264,-1161.02,0.00032328,2]
[357194491,1743883855273,-500.0,0.00032328,2]
[357194492,1743883855283,-151.0,0.000324,7]
[357194493,1743883855293,-803.0,0.000324,2]
[357194494,1743883855302,-234.0,0.000324,2]
[357194495,1743883855312,-3954.0,0.00032528,2]
[357194496,1743883855322,-851.0,0.00032528,2]
[357194497,1743883855331,-151.0,0.00032528,2]
[357194498,1743883855341,-1119.0,0.00032528,2]
[357194499,1743883855350,-500.0,0.00032602,2]
[357194500,1743883855359,-500.0,0.00032602,2]
[357194501,1743883855368,-548.65993355,0.00032602,2]
[357194502,1743883855378,-213.84705,0.00032602,7]
[357194503,1743883855387,-213.84705,0.00032602,7]
[357194504,1743883855396,-500.0,0.00032602,2]
[357194505,1743883855405,-500.0,0.00032602,2]
[357194506,1743883855415,-500.0,0.00032602,2]
[357194507,1743883855424,-500.0,0.00032602,2]
[357194508,1743883855433,-1180.8,0.00032602,2]
[357194509,1743883855442,-151.0,0.00032602,7]
[357194510,1743883855451,-151.0,0.00032602,7]
[357194511,1743883855460,-334.93885781,0.00032602,2]
[357194512,1743883855470,-500.0,0.00032602,2]
[357194513,1743883855479,-500.0,0.00032602,2]
[357194514,1743883855489,-151.0,0.00032602,7]
[357194515,1743883855499,-151.0,0.00032602,7]
[357194516,1743883855508,-500.0,0.00032602,2]
[357194517,1743883855518,-151.0,0.00032602,7]
[357194518,1743883855527,-500.0,0.00032602,2]
[357194519,1743883855536,-151.0,0.00032602,7]
[357194520,1743883855545,-500.0,0.00032602,2]
[357194521,1743883855555,-500.0,0.00032602,2]
[357194522,1743883855564,-500.0,0.00032602,2]
[357194523,1743883855573,-301.71799949,0.00032602,2]
[357194524,1743883855582,-500.0,0.00032602,2]
[357194525,1743883855591,-574.14,0.00032602,2]
[357194526,1743883855601,-500.0,0.00032602,2]
[357194527,1743883855610,-522.64712071,0.00032602,2]
[357194528,1743883855629,-500.0,0.00032602,2]
[357194529,1743883855638,-7496.33,0.00032602,2]
[357194530,1743883855648,-1042.25,0.00032602,2]
[357194531,1743883855658,-294.43033284,0.00032602,2]
[357194532,1743883855667,-543.06,0.00032602,2]
[357194533,1743883855677,-647.48,0.00032602,2]
[357194534,1743883855686,-500.0,0.00032602,2]
[357194535,1743883855696,-151.0,0.00032602,7]
[357194536,1743883855705,-718.6,0.00032602,2]
[357194537,1743883855715,-1355.36,0.00032602,2]
[357194538,1743883855724,-693.04,0.00032602,2]
[357194539,1743883855733,-749.12,0.00032602,2]
[357194540,1743883855743,-679.22,0.00032602,2]
[357194541,1743883855753,-719.01,0.00032602,2]
[357194542,1743883855763,-500.0,0.00032602,2]
[357194543,1743883855772,-500.0,0.00032602,2]
[357194544,1743883855781,-5078.45,0.00032602,2]
[357194545,1743883855791,-500.0,0.00032602,2]
[357194546,1743883855800,-2538.8,0.00032602,2]
[357194547,1743883855810,-500.0,0.00032602,2]
[357194548,1743883855820,-564.07025899,0.00032602,2]
[357194549,1743883855829,-1163.81,0.00032602,2]
[357194550,1743883855839,-500.0,0.00032602,2]
[357194551,1743883855849,-3919.01,0.00032602,2]
[357194552,1743883855859,-500.0,0.00032602,2]
[357194553,1743883855869,-9459.4,0.00032602,2]
[357194554,1743883855878,-1226.06,0.00032602,2]
[357194555,1743883855888,-500.0,0.00032602,2]
[357194556,1743883855897,-500.0,0.00032602,2]
[357194557,1743883855907,-564.2,0.00032602,2]
[357194558,1743883855917,-500.0,0.00032602,2]
[357194559,1743883855927,-500.0,0.00032602,2]
[357194560,1743883855937,-151.0,0.00032602,7]
[357194561,1743883855947,-500.0,0.00032602,2]
[357194562,1743883855961,-1161.02,0.00032602,2]
[357194563,1743883855972,-2386.027986,0.00032602,7]
[357194564,1743883855981,-2386.027986,0.00032602,7]
[357194565,1743883855992,-500.0,0.00032602,2]
[357194566,1743883856002,-375.07,0.00032646,2]
[357194567,1743883856011,-452.25,0.00032646,2]
[357194568,1743883856021,-239.09655511,0.0003265,2]
[357194569,1743883856031,-1037.02849005,0.00032776,2]
[357194570,1743883856041,-292.79860435,0.000328,2]
[357194571,1743883856051,-3095.2402325,0.00032853,2]
[357194572,1743883856060,-3165.2952668,0.00032853,2]
[357194573,1743883856070,-500.0,0.00032876,2]
[357194574,1743883856080,-500.0,0.00032876,2]
[357194575,1743883856090,-500.0,0.00032876,2]
[357194576,1743883856101,-500.0,0.00032876,2]
[357194577,1743883856112,-500.0,0.00032876,2]
[357194578,1743883856123,-500.0,0.00032876,2]
[357194579,1743883856133,-1180.8,0.00032876,2]
[357194580,1743883856143,-500.0,0.00032876,2]
[357194581,1743883856153,-500.0,0.00032876,2]
[357194582,1743883856164,-500.0,0.00032876,2]
[357194583,1743883856174,-500.0,0.00032876,2]
[357194584,1743883856185,-183.46225293,0.00032876,2]
[357194585,1743883856196,-500.0,0.00032876,2]
[357194586,1743883856206,-500.0,0.00032876,2]
[357194587,1743883856217,-500.0,0.00032876,2]
[357194588,1743883856228,-574.14,0.00032876,2]
[357194589,1743883856238,-500.0,0.00032876,2]
[357194590,1743883856249,-500.0,0.00032876,2]
[357194591,1743883856259,-7496.33,0.00032876,2]
[357194592,1743883856270,-1042.25,0.00032876,2]
[357194593,1743883856280,-543.06,0.00032876,2]
[357194594,1743883856289,-647.48,0.00032876,2]
[357194595,1743883856300,-500.0,0.00032876,2]
[357194596,1743883856310,-718.6,0.00032876,2]
[357194597,1743883856321,-1355.36,0.00032876,2]
[357194598,1743883856330,-693.04,0.00032876,2]
[357194599,1743883856341,-749.12,0.00032876,2]
[357194600,1743883856351,-679.22,0.00032876,2]
[357194601,1743883856362,-719.01,0.00032876,2]
[357194602,1743883856372,-500.0,0.00032876,2]
[357194603,1743883856382,-500.0,0.00032876,2]
[357194604,1743883856393,-5078.45,0.00032876,2]
[357194605,1743883856403,-500.0,0.00032876,2]
[357194606,1743883856414,-2538.8,0.00032876,2]
[357194607,1743883856424,-500.0,0.00032876,2]
[357194608,1743883856434,-1163.81,0.00032876,2]
[357194609,1743883856446,-500.0,0.00032876,2]
[357194610,1743883856456,-3919.01,0.00032876,2]
[357194611,1743883856467,-500.0,0.00032876,2]
[357194612,1743883856477,-9459.4,0.00032876,2]
[357194613,1743883856486,-1226.06,0.00032876,2]
[357194614,1743883856496,-500.0,0.00032876,2]
[357194615,1743883856505,-500.0,0.00032876,2]
[357194616,1743883856515,-564.2,0.00032876,2]
[357194617,1743883856525,-500.0,0.00032876,2]
[357194618,1743883856535,-500.0,0.00032876,2]
[357194619,1743883856544,-1161.02,0.00032876,2]
[357194620,1743883856554,-500.0,0.00032876,2]
[357194621,1743883856564,-1872.71,0.00032877,2]
[357194622,1743883856574,-500.89478144,0.00032877,5]
[357194623,1743883856584,-151.0,0.00032877,7]
[357194624,1743883856594,-1292.535242,0.00032877,7]
[357194625,1743883856604,-1292.535242,0.00032877,7]
[357194626,1743883856613,-668.98941565,0.00032877,7]
[357194627,1743883856623,-668.98941565,0.00032877,7]
[357194628,1743883856633,-668.98941565,0.00032877,7]
[357194629,1743883856643,-668.98941565,0.00032877,7]
[357194630,1743883856652,-668.98941565,0.00032877,7]
[357194631,1743883856662,-668.98941565,0.00032877,7]
[357194632,1743883856672,-668.98941565,0.00032877,7]
[357194633,1743883856682,-668.98941565,0.00032877,7]
[357194634,1743883856692,-668.98941565,0.00032877,7]
[357194635,1743883856702,-668.98941565,0.00032877,7]
[357194636,1743883856711,-668.98941565,0.00032877,7]
[357194637,1743883856721,-668.98941565,0.00032877,7]
[357194638,1743883856731,-668.98941565,0.00032877,7]
[357194639,1743883856740,-668.98941565,0.00032877,7]
[357194640,1743883856749,-668.98941565,0.00032877,7]
[357194641,1743883856759,-668.98941565,0.00032877,7]
[357194642,1743883856768,-668.98941565,0.00032877,7]
[357194643,1743883856777,-668.98941565,0.00032877,7]
[357194644,1743883856787,-668.98941565,0.00032877,7]
[357194645,1743883856798,-170.59,0.00032932,120]
[357194646,1743883856809,-600.0,0.00033,2]
[357194647,1743883856819,-151.0,0.00033,7]
[357194648,1743883856828,-13481.70514394,0.0003305,2]
[357194649,1743883856838,-204.7468839,0.0003305,2]
[357194650,1743883856848,-213.84705,0.00033104,7]
[357194651,1743883856858,-213.84705,0.00033104,7]
[357194652,1743883856868,-151.0,0.00033104,7]
[357194653,1743883856877,-151.0,0.00033104,7]
[357194654,1743883856887,-500.0,0.0003315,2]
[357194655,1743883856897,-500.0,0.0003315,2]
[357194656,1743883856906,-500.0,0.0003315,2]
[357194657,1743883856916,-545.68734407,0.0003315,2]
[357194658,1743883856926,-500.0,0.0003315,2]
[357194659,1743883856935,-500.0,0.0003315,2]
[357194660,1743883856945,-1180.8,0.0003315,2]
[357194661,1743883856956,-500.0,0.0003315,2]
[357194662,1743883856973,-500.0,0.0003315,2]
[357194663,1743883856984,-151.0,0.0003315,7]
[357194664,1743883856996,-500.0,0.0003315,2]
[357194665,1743883857006,-151.0,0.0003315,7]
[357194666,1743883857017,-251.84769635,0.0003315,2]
[357194667,1743883857028,-151.0,0.0003315,7]
[357194668,1743883857039,-253.26527508,0.0003315,2]
[357194669,1743883857049,-500.0,0.0003315,2]
[357194670,1743883857060,-500.0,0.0003315,2]
[357194671,1743883857070,-574.14,0.0003315,2]
[357194672,1743883857081,-500.0,0.0003315,2]
[357194673,1743883857091,-500.0,0.0003315,2]
[357194674,1743883857103,-7496.33,0.0003315,2]
[357194675,1743883857114,-1042.25,0.0003315,2]
[357194676,1743883857124,-543.06,0.0003315,2]
[357194677,1743883857134,-647.48,0.0003315,2]
[357194678,1743883857145,-230.09712888,0.0003315,2]
[357194679,1743883857157,-151.0,0.0003315,7]
[357194680,1743883857168,-718.6,0.0003315,2]
[357194681,1743883857178,-1355.36,0.0003315,2]
[357194682,1743883857189,-693.04,0.0003315,2]
[357194683,1743883857199,-749.12,0.0003315,2]
[357194684,1743883857210,-679.22,0.0003315,2]
[357194685,1743883857221,-719.01,0.0003315,2]
[357194686,1743883857232,-500.0,0.0003315,2]
[357194687,1743883857242,-500.0,0.0003315,2]
[357194688,1743883857253,-5078.45,0.0003315,2]
[357194689,1743883857263,-500.0,0.0003315,2]
[357194690,1743883857273,-2538.8,0.0003315,2]
[357194691,1743883857283,-500.0,0.0003315,2]
[357194692,1743883857293,-1163.81,0.0003315,2]
[357194693,1743883857303,-500.0,0.0003315,2]
[357194694,1743883857313,-3919.01,0.0003315,2]
[357194695,1743883857324,-500.0,0.0003315,2]
[357194696,1743883857334,-9459.4,0.0003315,2]
[357194697,1743883857344,-1226.06,0.0003315,2]
[357194698,1743883857354,-500.0,0.0003315,2]
[357194699,1743883857364,-500.0,0.0003315,2]
[357194700,1743883857374,-564.2,0.0003315,2]
[357194701,1743883857384,-500.0,0.0003315,2]
[357194702,1743883857394,-500.0,0.0003315,2]
[357194703,1743883857405,-151.0,0.0003315,7]
[357194704,1743883857415,-1161.02,0.0003315,2]
[357194705,1743883857425,-2386.027986,0.0003315,7]
[357194706,1743883857435,-2386.027986,0.0003315,7]
[357194707,1743883857445,-500.0,0.0003315,2]
[357194708,1743883857455,-527.42427224,0.00033324,2]
[357194709,1743883857465,-6792.6912658,0.00033401,2]
[357194710,1743883857475,-638.0841251,0.00033401,2]
[357194711,1743883857485,-655.85,0.00033423,2]
[357194712,1743883857495,-373.79018291,0.00033424,2]
[357194713,1743883857505,-500.0,0.00033424,2]
[357194714,1743883857515,-500.0,0.00033424,2]
[357194715,1743883857526,-500.0,0.00033424,2]
[357194716,1743883857536,-500.0,0.00033424,2]
[357194717,1743883857546,-1180.8,0.00033424,2]
[357194718,1743883857556,-500.0,0.00033424,2]
[357194719,1743883857566,-328.63632993,0.00033424,2]
[357194720,1743883857576,-500.0,0.00033424,2]
[357194721,1743883857586,-500.0,0.00033424,2]
[357194722,1743883857596,-500.0,0.00033424,2]
[357194723,1743883857606,-574.14,0.00033424,2]
[357194724,1743883857616,-500.0,0.00033424,2]
[357194725,1743883857626,-500.0,0.00033424,2]
[357194726,1743883857636,-7496.33,0.00033424,2]
[357194727,1743883857646,-1042.25,0.00033424,2]
[357194728,1743883857655,-543.06,0.00033424,2]
[357194729,1743883857665,-647.48,0.00033424,2]
[357194730,1743883857676,-718.6,0.00033424,2]
[357194731,1743883857685,-1355.36,0.00033424,2]
[357194732,1743883857695,-693.04,0.00033424,2]
[357194733,1743883857705,-749.12,0.00033424,2]
[357194734,1743883857715,-679.22,0.00033424,2]
[357194735,1743883857725,-719.01,0.00033424,2]
[357194736,1743883857735,-500.0,0.00033424,2]
[357194737,1743883857746,-500.0,0.00033424,2]
[357194738,1743883857755,-5078.45,0.00033424,2]
[357194739,1743883857767,-500.0,0.00033424,2]
[357194740,1743883857777,-2538.8,0.00033424,2]
[357194741,1743883857787,-500.0,0.00033424,2]
[357194742,1743883857797,-1163.81,0.00033424,2]
[357194743,1743883857807,-500.0,0.00033424,2]
[357194744,1743883857818,-3919.01,0.00033424,2]
[357194745,1743883857829,-500.0,0.00033424,2]
[357194746,1743883857843,-9459.4,0.00033424,2]
[357194747,1743883857853,-1226.06,0.00033424,2]
[357194748,1743883857864,-500.0,0.00033424,2]
[357194749,1743883857874,-500.0,0.00033424,2]
[357194750,1743883857885,-564.2,0.00033424,2]
[357194751,1743883857895,-500.0,0.00033424,2]
[357194752,1743883857906,-500.0,0.00033424,2]